bitfinex-derivatives/quotes_ETHF0:USTF0_20260209
["timestamp","ask_amount","ask_price","bid_price","bid_amount"]
[1770654147556,2.88858517,2059.4,2058.4,2.71642356]
[1770654151369,2.88858517,2059.4,2058.6,2.60048343]
[1770654152473,2.88858517,2059.4,2058.4,2.60058924]
[1770654153772,2.88858517,2059.2,2058.2,0.00467011]
[1770654154372,0.24297,2059.1,2058.2,0.00467011]
[1770654154576,2.88858517,2059.0,2058.2,0.00467011]
[1770654154876,2.88858517,2058.6,2057.6,2.61583268]
[1770654155873,2.89367105,2058.6,2057.6,2.62050638]
[1770654156872,2.89367105,2058.6,2057.6,0.0046737]
[1770654157072,2.88858517,2058.3,2057.3,5.6898517]
[1770654157273,2.88858517,2058.3,2057.3,2.80374769]
[1770654158179,2.88858517,2058.3,2057.3,2.80735957]
[1770654160482,2.88858517,2058.5,2057.3,2.80735957]
[1770654172287,3.10810372,2058.6,2057.3,2.80735957]
[1770654172895,3.10301784,2058.5,2057.3,2.80735957]
[1770654174199,3.34606784,2058.5,2057.3,2.80735957]
[1770654174498,3.10301784,2057.6,2056.5,3.10668043]
[1770654175398,3.10301784,2057.4,2056.5,0.00493414]
[1770654175794,3.10301784,2057.6,2056.5,3.11161457]
[1770654176196,3.34616784,2057.6,2056.5,0.00493414]
[1770654176497,9.32775784,2057.6,2056.5,0.00493414]
[1770654176797,3.10301784,2057.3,2056.5,0.00493414]
[1770654176997,3.10301784,2057.3,2056.1,3.10668043]
[1770654178100,3.10301784,2057.3,2056.1,3.11149434]
[1770654179098,3.10301784,2057.1,2056.1,0.00481391]
[1770654179300,3.1067372,2057.1,2056.1,0.00481391]
[1770654179802,3.34623784,2057.0,2055.9,3.10668043]
[1770654180906,3.34623784,2057.0,2055.9,3.11267304]
[1770654182598,0.00371936,2057.1,2055.9,3.11267304]
[1770654182798,3.1067372,2057.1,2055.9,3.11267304]
[1770654185202,0.00371936,2057.1,2056.2,0.24331]
[1770654185401,3.10301784,2057.5,2056.3,3.10668043]
[1770654185601,3.10301784,2057.5,2056.4,3.10668043]
[1770654186102,3.10301784,2057.7,2056.4,3.10668043]
[1770654186507,3.10742647,2057.7,2056.4,3.34997043]
[1770654188208,3.10301784,2057.5,2056.4,3.10668043]
[1770654188402,0.24317,2057.4,2056.4,3.10668043]
[1770654188607,3.10301784,2057.0,2056.1,3.10668043]
[1770654189109,3.10301784,2056.9,2056.1,3.10668043]
[1770654189605,3.10301784,2056.9,2055.9,3.11267304]
[1770654192505,3.34622784,2057.1,2055.9,3.11267304]
[1770654192706,34.54401784,2057.3,2056.1,3.10668043]
[1770654193409,3.10301784,2057.1,2056.1,3.10668043]
[1770654199810,2.8774187,2056.9,2055.9,2.79224307]
[1770654200014,2.8774187,2056.8,2055.9,2.79224307]
[1770654200907,2.8774187,2056.4,2055.7,2.78625046]
[1770654201906,0.24325,2056.7,2055.7,2.78625046]
[1770654201907,2.8774187,2056.6,2055.7,2.79158641]
[1770654202213,2.8774187,2056.3,2055.1,2.78625046]
[1770654202408,2.8774187,2055.9,2055.1,2.78625046]
[1770654203216,2.88354153,2055.9,2055.1,0.00585599]
[1770654203603,0.00612283,2055.9,2055.1,2.79210645]
[1770654203807,2.88354153,2055.9,2055.1,2.79210645]
[1770654207713,2.88354153,2055.9,2055.1,0.00585599]
[1770654207914,2.88354153,2055.9,2054.5,2.78625046]
[1770654207915,2.8774187,2055.4,2054.5,2.78625046]
[1770654208222,2.8774187,2055.7,2054.5,3.06351403]
[1770654208613,2.8774187,2055.7,2054.5,2.78625046]
[1770654208815,2.8774187,2055.7,2054.5,2.79096811]
[1770654210722,2.83918391,2055.8,2054.5,2.79096811]
[1770654210918,2.8774187,2056.4,2055.3,2.78625046]
[1770654211120,2.8774187,2056.9,2055.7,2.78625046]
[1770654211425,2.8774187,2056.9,2055.9,2.78625046]
[1770654211720,2.8774187,2057.3,2055.9,2.78625046]
[1770654211921,2.88367421,2057.3,2055.9,2.78625046]
[1770654213521,2.8774187,2057.0,2055.9,2.78625046]
[1770654215723,2.8774187,2056.7,2055.9,2.78625046]
[1770654215918,2.8774187,2056.7,2055.3,2.78625046]
[1770654216318,2.8774187,2056.7,2055.4,2.78625046]
[1770654217024,2.8774187,2056.7,2055.6,2.78625046]
[1770654219727,2.8774187,2056.4,2055.6,2.78625046]
[1770654221128,2.88769604,2057.0,2055.6,2.78625046]
[1770654221129,2.8774187,2056.7,2055.6,2.78625046]
[1770654222723,3.08240391,2057.1,2055.7,2.78625046]
[1770654222724,2.8774187,2056.9,2055.7,2.78625046]
[1770654224631,2.8774187,2056.7,2055.7,2.78625046]
[1770654225028,2.8774187,2056.4,2055.3,2.78625046]
[1770654226028,2.87102491,2056.1,2055.3,2.78625046]
[1770654226530,2.87102491,2056.4,2055.3,2.78625046]
[1770654230736,2.87102491,2056.1,2055.1,2.78277995]
[1770654232734,2.87102491,2056.3,2055.1,2.78277995]
[1770654232932,2.87102491,2056.3,2055.3,2.78277995]
[1770654233128,2.87102491,2056.6,2055.5,2.78277995]
[1770654237237,2.87102491,2056.9,2055.7,2.78277995]
[1770654237538,2.87102491,2056.9,2055.8,2.78277995]
[1770654238139,2.87102491,2056.9,2055.9,2.78277995]
[1770654239539,2.87102491,2056.7,2055.9,2.78277995]
[1770654240137,2.87102491,2056.7,2055.7,2.78277995]
[1770654240327,2.87102491,2056.7,2055.8,2.78277995]
[1770654240729,2.87102491,2056.7,2055.7,2.90149462]
[1770654240935,2.87102491,2056.4,2055.5,2.78277995]
[1770654241535,2.87102491,2056.4,2055.3,2.78277995]
[1770654242041,2.87102491,2056.4,2055.4,2.78277995]
[1770654243545,2.87102491,2056.1,2055.2,5.68427457]
[1770654243844,2.87102491,2056.1,2055.2,2.78277995]
[1770654244239,2.87102491,2056.3,2055.3,2.78277995]
[1770654244437,2.87102491,2056.3,2055.4,2.78277995]
[1770654244947,2.87102491,2056.1,2055.1,2.78277995]
[1770654245147,2.87102491,2056.3,2055.5,2.78277995]
[1770654248343,2.87102491,2056.3,2055.4,2.78277995]
[1770654251436,3.11432491,2056.3,2055.3,2.90149462]
[1770654251641,2.87102491,2056.2,2055.2,5.68427457]
[1770654251845,2.87102491,2056.2,2055.3,2.78277995]
[1770654252149,2.87102491,2056.1,2055.3,2.78277995]
[1770654253344,2.87102491,2056.0,2055.3,2.78277995]
[1770654255943,2.75399495,2056.2,2055.4,2.93909863]
[1770654261244,2.75399495,2056.2,2055.5,2.75480469]
[1770654261646,3.01535167,2056.4,2055.5,2.75480469]
[1770654261846,2.88769604,2056.7,2055.6,2.75480469]
[1770654262044,3.01535167,2056.7,2055.8,5.65629931]
[1770654262244,3.01535167,2056.7,2055.9,2.75480469]
[1770654265347,3.01535167,2056.6,2055.7,2.75480469]
[1770654265549,3.01535167,2056.4,2055.5,2.75480469]
[1770654266052,3.01535167,2056.4,2055.6,2.75480469]
[1770654266551,3.01535167,2056.3,2055.4,2.75480469]
[1770654267346,3.01535167,2056.3,2055.5,2.75480469]
[1770654267654,3.01535167,2056.7,2055.7,5.65629931]
[1770654267843,3.01535167,2056.7,2055.8,2.75480469]
[1770654269253,3.01535167,2056.7,2055.9,2.75480469]
[1770654270449,3.01535167,2056.7,2055.6,2.90149462]
[1770654270648,3.01535167,2056.7,2055.5,2.75480469]
[1770654270649,3.01535167,2056.4,2055.5,2.75480469]
[1770654271053,3.01535167,2056.4,2055.6,2.75480469]
[1770654276457,3.01535167,2056.6,2055.6,2.75480469]
[1770654276856,3.01535167,2056.8,2055.8,2.75480469]
[1770654277156,3.01535167,2056.8,2055.9,2.75480469]
[1770654277548,3.01535167,2056.8,2056.0,2.75480469]
[1770654277751,3.01535167,2056.8,2056.0,2.75885468]
[1770654278153,3.01535167,2056.8,2056.1,2.75480469]
[1770654278852,3.01535167,2057.0,2056.2,2.75480469]
[1770654282359,31.456,2057.1,2056.2,2.75480469]
[1770654282661,3.01535167,2057.0,2056.2,2.75480469]
[1770654284159,31.456,2057.1,2056.2,2.75480469]
[1770654284463,3.02160718,2057.3,2056.6,2.75480469]
[1770654285360,3.02160718,2057.3,2056.4,5.78574009]
[1770654285562,3.02160718,2057.3,2056.4,2.8795117]
[1770654287865,3.02160718,2057.3,2056.5,2.8795117]
[1770654288254,2.96819685,2057.7,2056.6,2.8795117]
[1770654288455,2.96819685,2058.0,2056.8,2.8795117]
[1770654288758,2.96819685,2058.0,2056.9,2.8795117]
[1770654289167,2.96819685,2058.2,2057.0,3.1227217]
[1770654289375,2.97399337,2058.2,2057.2,2.8795117]
[1770654289863,2.97399337,2058.2,2057.3,2.8795117]
[1770654291054,0.00579652,2058.2,2057.3,2.8795117]
[1770654291261,2.96819685,2058.4,2057.3,2.8795117]
[1770654291667,2.96819685,2058.4,2057.5,2.8795117]
[1770654291867,2.96819685,2058.7,2057.5,2.8795117]
[1770654292164,2.96819685,2058.7,2057.6,2.8795117]
[1770654292365,2.97270394,2058.7,2057.6,2.8795117]
[1770654292757,2.97270394,2058.7,2057.4,2.88298323]
[1770654292758,2.96819685,2058.5,2057.4,2.88298323]
[1770654293264,2.96819685,2058.3,2057.4,0.00347153]
[1770654293663,2.96819685,2058.3,2057.4,2.88298323]
[1770654295463,2.96819685,2058.3,2057.4,0.00347153]
[1770654295669,2.96819685,2058.3,2057.2,2.8795117]
[1770654296670,2.96819685,2058.3,2057.2,2.88469018]
[1770654297469,3.21124685,2058.5,2057.2,2.88469018]
[1770654300769,2.96819685,2058.0,2056.9,2.8795117]
[1770654301372,2.96819685,2058.2,2056.9,3.15794622]
[1770654301572,3.21127685,2058.2,2056.9,2.8795117]
[1770654301767,3.21127685,2058.2,2056.9,2.88328989]
[1770654301972,3.21127685,2058.2,2056.9,3.15378161]
[1770654302175,3.21127685,2058.2,2056.9,2.88328989]
[1770654302468,2.96819685,2057.7,2056.5,2.8795117]
[1770654302672,2.96819685,2057.5,2056.1,2.8795117]
[1770654302873,2.96819685,2057.4,2056.1,2.8795117]
[1770654303073,2.96819685,2057.4,2056.2,2.8795117]
[1770654303274,2.96819685,2057.4,2056.2,3.14656427]
[1770654303473,2.96819685,2057.4,2056.2,3.15116487]
[1770654305976,2.96819685,2057.4,2056.2,0.0046006]
[1770654306176,2.96819685,2057.2,2055.8,2.90622839]
[1770654306374,2.96819685,2057.2,2055.9,3.14956839]
[1770654306685,2.96819685,2057.2,2055.9,9.56330182]
[1770654307177,2.97248972,2057.2,2055.9,3.15490642]
[1770654307580,2.97248972,2057.2,2056.0,0.12437305]
[1770654308380,2.97248972,2057.2,2056.1,0.08006259]
[1770654310590,2.97248972,2057.2,2056.2,0.11037373]
[1770654314282,3.00599953,2056.9,2056.0,0.16646265]
[1770654314789,3.00599953,2057.7,2056.8,0.15898265]
[1770654314980,3.00814597,2057.9,2056.8,0.15898265]
[1770654315684,3.01195725,2057.9,2056.9,0.15352369]
[1770654324384,0.00381128,2057.9,2057.1,0.11999999]
[1770654324593,3.01753391,2058.3,2057.3,0.11999999]
[1770654325508,3.0231901,2058.3,2057.3,0.11999999]
[1770654325794,3.01780046,2058.1,2057.2,3.14941839]
[1770654325986,3.01780046,2058.1,2057.2,0.24319]
[1770654326389,3.01780046,2058.1,2057.2,0.35698908]
[1770654326790,3.01780046,2058.1,2057.3,0.11057414]
[1770654327088,3.01780046,2058.1,2057.1,0.09981944]
[1770654328098,3.01780046,2058.1,2057.1,3.00604783]
[1770654328696,3.01780046,2058.1,2057.2,0.09393994]
[1770654331289,3.01780046,2058.1,2057.0,2.95270876]
[1770654331490,2.83960692,2057.9,2057.0,0.04648037]
[1770654331695,3.04314383,2057.8,2056.8,2.94948863]
[1770654331891,3.04314383,2057.8,2056.7,3.14946839]
[1770654332090,3.04284895,2057.3,2056.4,2.94948863]
[1770654332295,3.04284895,2057.2,2056.2,0.04385]
[1770654332701,3.04284895,2057.0,2056.1,2.90622839]
[1770654333003,3.04284895,2056.5,2055.4,2.94685955]
[1770654333203,3.04284895,2056.5,2055.4,0.04063116]
[1770654333895,3.06017227,2056.2,2055.4,0.04063116]
[1770654334092,3.06610172,2056.2,2055.4,0.04597596]
[1770654336908,3.06610172,2056.2,2055.4,0.0053448]
[1770654337796,3.06610172,2056.2,2055.4,0.04430057]
[1770654338810,3.06610172,2056.2,2055.4,0.0053448]
[1770654339806,3.06610172,2056.2,2055.4,0.04182789]
[1770654341505,3.06610172,2056.2,2055.4,0.0053448]
[1770654341710,5.873478,2056.0,2054.9,0.03005559]
[1770654341909,3.03387108,2055.9,2054.9,0.03005559]
[1770654342612,3.03387108,2055.9,2054.9,0.03564388]
[1770654343612,3.04339232,2055.6,2054.9,0.00558829]
[1770654343812,3.04339232,2055.6,2054.7,0.00818517]
[1770654344112,3.04339232,2055.6,2054.5,0.00498464]
[1770654344714,3.04339232,2055.6,2054.6,0.00277003]
[1770654348515,3.01009668,2055.8,2054.8,0.0532288]
[1770654348712,3.01009668,2056.1,2054.8,0.0532288]
[1770654349306,3.01009668,2056.1,2055.0,0.05559681]
[1770654349511,3.01009668,2056.1,2055.1,0.05240207]
[1770654350319,3.01009668,2056.1,2055.3,0.05295969]
[1770654351120,3.01009668,2056.1,2055.2,0.24343]
[1770654351121,0.00592945,2056.2,2055.5,0.11212833]
[1770654351421,2.97551799,2056.5,2055.5,0.11212833]
[1770654352019,2.97551799,2056.5,2055.7,0.11087552]
[1770654352222,2.97622382,2056.2,2055.2,0.11139958]
[1770654354525,2.97622382,2056.2,2055.4,0.12429759]
[1770654355630,2.97622382,2056.2,2055.3,0.24342]
[1770654356526,2.97622382,2056.2,2055.0,0.10036766]
[1770654357823,2.97622382,2056.2,2055.2,0.09473079]
[1770654358125,2.97622382,2056.2,2055.4,0.09473079]
[1770654358529,2.97622382,2056.2,2055.3,0.338672]
[1770654358727,2.97622382,2056.2,2055.4,0.09208662]
[1770654360723,2.97622382,2056.2,2055.5,0.2434]
[1770654361032,2.97622382,2056.2,2055.6,0.04759755]
[1770654361821,0.0049019,2056.5,2056.1,0.24332]
[1770654362025,2.91678461,2056.8,2056.2,1.83173661]
[1770654362219,0.24318,2057.4,2056.2,1.83173661]
[1770654362220,2.91678461,2057.3,2056.2,1.83173661]
[1770654362724,2.91678461,2057.3,2056.1,3.154669]
[1770654362725,2.91678461,2057.8,2056.6,1.9626433]
[1770654363030,2.92268367,2057.8,2056.7,1.9626433]
[1770654364329,2.92268367,2057.8,2056.9,1.92576649]
[1770654365125,2.92268367,2057.8,2056.7,2.90622839]
[1770654365333,2.92268367,2057.8,2056.7,2.04577757]
[1770654367430,2.91678461,2057.6,2056.5,0.24328]
[1770654367630,3.15993461,2057.6,2056.2,2.03176356]
[1770654367828,2.91678461,2057.3,2056.2,2.03176356]
[1770654368027,2.91678461,2057.3,2056.1,0.00512061]
[1770654368537,2.91678461,2057.1,2056.1,0.00512061]
[1770654369326,0.24319,2057.2,2055.4,4.34430509]
[1770654369327,2.91678461,2056.9,2055.4,4.34430509]
[1770654369528,3.16002461,2056.8,2055.0,2.32483346]
[1770654369835,2.91678461,2056.5,2055.0,2.32483346]
[1770654370029,0.24329,2056.4,2055.0,2.32483346]
[1770654370230,2.91678461,2056.3,2055.0,2.32483346]
[1770654370434,2.92289412,2056.3,2055.0,2.33088718]
[1770654370833,2.91678461,2056.1,2055.0,0.00605372]
[1770654371236,2.91678461,2056.1,2055.0,2.04338954]
[1770654371736,2.91678461,2056.1,2055.2,2.03282968]
[1770654373535,2.91678461,2056.1,2055.1,2.90622839]
[1770654373536,2.91678461,2056.1,2055.4,2.00946006]
[1770654373736,0.00610951,2056.3,2055.8,2.00946006]
[1770654376037,2.86724194,2056.3,2055.8,2.00946006]
[1770654376534,0.00610951,2056.3,2055.8,2.00946006]
[1770654377433,2.86113243,2056.7,2056.0,1.99749235]
[1770654377740,31.451,2057.6,2056.0,1.99749235]
[1770654377937,2.86113243,2057.5,2056.2,1.99308976]
[1770654378541,2.86557552,2057.5,2056.2,1.99308976]
[1770654379443,2.86557552,2057.5,2056.1,0.24332]
[1770654381140,2.86557552,2057.5,2056.2,2.04811669]
[1770654381849,2.86557552,2057.5,2056.4,2.04378024]
[1770654382649,2.94807172,2057.3,2056.2,2.04448717]
[1770654383450,2.94807172,2057.3,2056.2,2.28779717]
[1770654385147,2.94807172,2057.1,2055.9,9.24947442]
[1770654385347,0.24322,2057.0,2055.7,20.77414843]
[1770654385545,2.94807172,2056.7,2055.5,2.01999777]
[1770654386050,2.94807172,2056.7,2055.4,2.89179066]
[1770654386051,2.94807172,2056.3,2055.3,2.01572542]
[1770654386640,2.94807172,2056.3,2055.2,0.24342]
[1770654387050,2.94807172,2056.3,2055.1,2.01217504]
[1770654390046,2.94807172,2056.1,2055.1,2.01217504]
[1770654390654,2.94807172,2056.1,2055.0,0.00605372]
[1770654390655,2.94807172,2055.7,2055.0,0.00605372]
[1770654390858,2.95221213,2055.7,2055.0,0.00605372]
[1770654394366,2.95221213,2055.7,2055.0,2.02731434]
[1770654396765,2.95221213,2055.7,2055.0,0.00605372]
[1770654396955,2.95221213,2055.7,2054.6,2.25890817]
[1770654398068,2.95221213,2055.7,2054.6,2.26296788]
[1770654399965,2.95221213,2055.7,2054.7,2.02189109]
[1770654400366,2.95221213,2055.7,2054.8,0.24348]
[1770654400658,2.95221213,2055.7,2054.9,2.02191826]
[1770654403468,2.95221213,2055.7,2055.0,0.24345]
[1770654403767,0.00414041,2055.7,2055.1,2.01224942]
[1770654404163,2.95221213,2055.7,2055.1,2.01224942]
[1770654404665,2.94807172,2056.1,2055.3,2.01211375]
[1770654405468,2.94807172,2056.1,2054.9,2.89179066]
[1770654405469,2.94807172,2056.1,2055.5,2.0067685]
[1770654405658,2.95151638,2056.1,2055.5,2.0067685]
[1770654405860,2.95151638,2056.1,2055.2,6.28718994]
[1770654406066,2.95151638,2056.1,2055.3,2.00661009]
[1770654406267,2.95151638,2056.1,2055.3,2.25003009]
[1770654406467,2.95151638,2056.1,2055.4,2.0066544]
[1770654406468,2.79908416,2056.1,2055.4,2.0066544]
[1770654406667,2.79908416,2056.1,2055.1,2.00649781]
[1770654411471,2.79908416,2056.1,2055.1,2.24992781]
[1770654412275,2.79908416,2056.1,2055.1,5.14171847]
[1770654412475,2.79908416,2056.1,2055.2,1.93811346]
[1770654413879,2.79908416,2056.1,2055.1,2.1779102]
[1770654414775,2.79908416,2056.1,2055.1,5.06970086]
[1770654415387,2.79908416,2056.1,2055.2,2.89179066]
[1770654415575,2.7956395,2056.0,2055.1,2.89179066]
[1770654415975,2.7956395,2056.0,2055.0,4.82116523]
[1770654416273,2.7956395,2056.0,2055.1,2.89179066]
[1770654416775,2.7956395,2056.0,2055.0,4.82116523]
[1770654418085,2.7956395,2055.9,2055.0,2.89179066]
[1770654419181,2.7956395,2055.9,2055.0,4.81831162]
[1770654419381,2.7956395,2055.9,2055.1,1.92652096]
[1770654420278,5.67765206,2056.1,2055.3,0.24342]
[1770654420485,0.00344466,2056.1,2055.5,1.92640933]
[1770654420681,2.79908416,2056.1,2055.6,1.92627564]
[1770654422082,2.79908416,2056.1,2055.1,2.89179066]
[1770654422284,5.67765206,2056.1,2055.0,2.21576438]
[1770654422482,2.7956395,2056.0,2055.0,2.21576438]
[1770654422683,2.7956395,2056.0,2054.8,6.55333645]
[1770654422877,2.7956395,2055.9,2054.8,5.12820412]
[1770654423079,2.7956395,2055.8,2054.8,2.21565046]
[1770654424192,5.6742074,2056.0,2054.9,2.48235121]
[1770654424491,0.00344466,2056.1,2055.5,2.23888121]
[1770654424691,0.00344466,2056.1,2055.7,2.23875356]
[1770654424986,2.7956395,2055.9,2055.3,2.91168224]
[1770654425186,2.7956395,2055.7,2054.6,2.87136982]
[1770654425388,2.7956395,2055.6,2054.6,2.87136982]
[1770654425787,2.7956395,2055.4,2054.6,0.00405971]
[1770654425987,2.7956395,2055.2,2054.3,0.26998792]
[1770654426293,2.7956395,2055.0,2054.3,0.26998792]
[1770654426494,2.7956395,2055.0,2054.0,2.86731011]
[1770654427189,2.7956395,2055.0,2054.0,2.87273565]
[1770654427993,2.7956395,2055.0,2054.0,0.00542554]
[1770654428488,3.0391095,2054.9,2053.5,2.86731011]
[1770654428685,2.7956395,2054.7,2053.5,2.86731011]
[1770654428895,2.7956395,2054.6,2053.5,2.86731011]
[1770654429592,2.7956395,2054.6,2053.5,2.87183184]
[1770654430798,2.7956395,2054.6,2053.6,2.86731011]
[1770654431094,2.7956395,2054.7,2053.7,2.86731011]
[1770654438395,2.93505648,2054.9,2053.9,2.98447055]
[1770654438996,2.93505648,2054.9,2054.1,3.14767217]
[1770654439196,2.90001507,2055.3,2054.3,3.14767217]
[1770654446201,2.90001507,2055.2,2054.2,3.39122217]
[1770654447303,3.14345507,2055.2,2054.2,3.14767217]
[1770654447501,2.90001507,2055.2,2054.2,3.39122217]
[1770654450299,2.90440436,2055.6,2054.8,3.14767217]
[1770654451507,2.90440436,2055.6,2055.0,3.14767217]
[1770654451508,0.00438929,2055.6,2055.0,3.14767217]
[1770654451711,2.90001507,2055.8,2055.0,3.15215988]
[1770654452009,2.90001507,2056.3,2055.0,3.15215988]
[1770654452609,2.90360452,2056.3,2055.0,3.15215988]
[1770654453104,2.90360452,2056.3,2055.4,3.14767217]
[1770654459203,2.90001507,2056.9,2056.0,3.14767217]
[1770654459609,2.90001507,2057.5,2056.4,3.14767217]
[1770654459812,2.90001507,2057.5,2056.8,3.14767217]
[1770654460206,2.90483585,2057.5,2056.8,3.15349719]
[1770654461606,0.00482078,2057.5,2056.8,3.15349719]
[1770654461812,2.90001507,2057.9,2056.8,3.15349719]
[1770654462719,2.90612587,2057.9,2056.8,3.15349719]
[1770654465618,3.01955055,2057.6,2056.8,3.15349719]
[1770654466918,3.01955055,2057.8,2056.8,3.15349719]
[1770654469615,3.01955055,2057.8,2056.8,0.00582502]
[1770654469820,3.01955055,2057.5,2056.4,2.96213273]
[1770654470925,3.01955055,2057.5,2056.4,2.96604419]
[1770654471423,3.01955055,2057.2,2056.4,2.96604419]
[1770654471619,3.01955055,2057.6,2056.4,2.96604419]
[1770654473320,3.01955055,2057.6,2056.6,2.96213273]
[1770654473712,3.01955055,2057.8,2056.8,2.96213273]
[1770654474024,3.01955055,2057.8,2056.7,0.24325]
[1770654474025,3.01955055,2057.8,2057.0,2.96213273]
[1770654474225,3.01955055,2058.4,2057.4,2.96213273]
[1770654475327,3.02505742,2058.4,2057.4,2.96213273]
[1770654476324,3.02505742,2058.4,2057.3,0.24318]
[1770654476325,3.02505742,2058.4,2057.6,2.96213273]
[1770654476929,3.01955055,2058.8,2057.8,2.96213273]
[1770654478021,3.02526135,2058.8,2057.8,2.96213273]
[1770654481625,3.02526135,2058.8,2057.3,2.96213273]
[1770654481827,3.01955055,2058.5,2057.3,2.96213273]
[1770654482324,3.26259055,2058.5,2057.3,2.96213273]
[1770654482827,3.01955055,2058.1,2056.8,2.96213273]
[1770654484019,3.01955055,2058.0,2056.8,2.96213273]
[1770654486525,3.01955055,2058.2,2057.0,2.96213273]
[1770654487125,3.01955055,2058.5,2057.4,2.96213273]
[1770654489231,3.01955055,2058.5,2056.9,19.79362469]
[1770654489232,3.01955055,2058.4,2056.9,19.79362469]
[1770654489432,3.01955055,2058.2,2057.0,2.96213273]
[1770654489733,3.01955055,2058.2,2057.2,2.96213273]
[1770654490330,3.01955055,2058.5,2057.4,2.96213273]
[1770654491637,3.01955055,2058.5,2057.6,2.96213273]
[1770654493440,3.01955055,2058.3,2057.2,2.96213273]
[1770654499141,3.00427877,2058.1,2057.2,2.96213273]
[1770654500346,3.00427877,2057.9,2057.0,2.90168698]
[1770654500538,3.00427877,2057.9,2056.7,2.90168698]
[1770654501943,3.00427877,2057.8,2056.7,2.90168698]
[1770654503144,3.00427877,2057.8,2056.9,2.90168698]
[1770654503942,74.5798462,2058.3,2056.8,0.24324]
[1770654503943,2.8623078,2058.3,2057.1,2.90168698]
[1770654504144,3.00427877,2058.2,2057.1,2.90168698]
[1770654506540,3.00427877,2058.2,2057.3,2.90168698]
[1770654511360,3.00427877,2058.0,2057.1,2.90168698]
[1770654511552,3.00427877,2057.9,2057.1,2.90168698]
[1770654516063,3.00427877,2057.9,2056.9,7.23731167]
[1770654516365,3.00427877,2057.7,2056.8,2.90168698]
[1770654517460,3.00427877,2057.7,2056.9,2.90168698]
[1770654519766,5.86658657,2057.9,2056.9,2.90168698]
[1770654519964,3.00427877,2057.8,2056.9,2.90168698]
[1770654520666,3.00427877,2057.8,2057.1,2.90168698]
[1770654523670,3.00427877,2057.8,2057.0,3.14490698]
[1770654528374,2.8623078,2058.0,2057.0,3.14490698]
[1770654528574,2.9215012,2058.0,2057.3,2.80568815]
[1770654528872,2.9215012,2058.2,2057.3,2.80568815]
[1770654531475,2.9215012,2058.1,2057.3,2.80568815]
[1770654532067,2.9215012,2058.3,2057.5,2.80568815]
[1770654532776,2.9215012,2058.4,2057.7,2.80568815]
[1770654532972,2.9215012,2058.6,2057.7,2.80568815]
[1770654533874,2.9215012,2058.6,2058.1,2.80568815]
[1770654534079,0.0057108,2058.8,2058.1,2.81156668]
[1770654535181,2.9215012,2059.2,2058.3,2.80568815]
[1770654535577,34.3535012,2059.4,2058.3,2.80568815]
[1770654535777,2.9215012,2059.4,2058.5,2.80568815]
[1770654536183,2.92514321,2059.4,2058.5,2.80568815]
[1770654536980,2.92514321,2059.4,2058.7,2.80568815]
[1770654536981,0.00364201,2059.4,2058.7,2.80568815]
[1770654537381,2.9215012,2059.8,2058.9,2.80568815]
[1770654538078,2.9215012,2060.1,2058.9,2.80568815]
[1770654538281,2.92591953,2060.1,2058.9,2.80568815]
[1770654538982,2.9215012,2060.7,2059.4,2.80568815]
[1770654539177,2.9215012,2061.4,2059.9,2.80568815]
[1770654539379,2.9215012,2061.4,2060.1,2.80568815]
[1770654539682,2.9215012,2061.4,2060.3,2.80568815]
[1770654539983,2.9215012,2061.4,2060.3,2.81009851]
[1770654540180,2.9215012,2061.3,2060.3,0.00441036]
[1770654540384,2.9215012,2061.3,2060.3,2.81009851]
[1770654540789,2.9215012,2061.3,2060.3,0.00441036]
[1770654541783,2.9215012,2061.3,2060.3,2.81009851]
[1770654543187,0.00494507,2061.4,2060.3,2.81009851]
[1770654543393,0.00494507,2061.4,2060.5,2.80568815]
[1770654543689,2.9215012,2062.5,2060.9,2.80568815]
[1770654544587,2.92536374,2062.5,2060.9,2.80568815]
[1770654544992,2.92536374,2062.5,2061.1,2.80568815]
[1770654545191,3.1640812,2062.4,2061.1,2.80568815]
[1770654547187,3.1640812,2062.4,2060.7,0.24277]
[1770654547188,3.1640812,2062.4,2060.8,2.80568815]
[1770654547382,2.9215012,2062.1,2060.8,2.80568815]
[1770654547590,2.9215012,2061.9,2060.4,2.80568815]
[1770654547795,40.20553099,2062.0,2060.4,2.80568815]
[1770654547796,2.9215012,2061.7,2060.4,2.80568815]
[1770654549599,2.9215012,2061.7,2060.6,2.80568815]
[1770654555091,2.9215012,2061.4,2060.6,2.80568815]
[1770654555494,2.9215012,2061.4,2060.4,2.86367204]
[1770654555800,2.9215012,2061.4,2060.3,0.00441036]
[1770654555801,2.94933744,2061.1,2060.3,2.8680824]
[1770654557201,2.94933744,2061.1,2060.3,0.00441036]
[1770654557701,2.94933744,2061.1,2060.3,2.8680824]
[1770654559600,2.94933744,2061.1,2060.3,0.00441036]
[1770654560699,2.94933744,2061.1,2060.3,2.93363933]
[1770654562100,3.08534467,2061.3,2060.3,2.93363933]
[1770654562808,3.08534467,2061.8,2060.5,2.92922897]
[1770654563295,3.08534467,2061.8,2060.7,2.92922897]
[1770654565100,43.67778982,2062.3,2060.7,2.92922897]
[1770654565298,3.08534467,2062.8,2061.6,2.92922897]
[1770654565904,3.08534467,2062.5,2061.4,2.92922897]
[1770654566310,3.09164955,2062.5,2061.1,2.92922897]
[1770654567613,3.08534467,2062.2,2061.1,2.92922897]
[1770654570207,3.08534467,2062.2,2061.3,2.92922897]
[1770654577611,3.32795467,2062.2,2061.0,2.92922897]
[1770654577816,3.08534467,2061.9,2060.7,2.92922897]
[1770654578624,3.08534467,2061.7,2060.7,2.92922897]
[1770654579016,3.08534467,2061.7,2060.7,3.17200897]
[1770654581523,3.08534467,2061.7,2060.7,2.92922897]
[1770654585326,3.08534467,2061.2,2060.3,2.85671673]
[1770654585821,3.03896971,2061.4,2060.3,2.85671673]
[1770654586021,3.03896971,2061.4,2060.5,2.85230637]
[1770654587427,3.03896971,2061.4,2060.3,0.00441036]
[1770654587428,3.03896971,2061.4,2060.3,2.85671673]
[1770654587629,3.28166971,2061.4,2060.3,0.00441036]
[1770654587928,3.03896971,2061.0,2060.3,0.00441036]
[1770654588128,3.03896971,2060.9,2059.8,2.85230637]
[1770654589029,3.03896971,2060.9,2059.8,2.85580478]
[1770654590420,3.03896971,2060.9,2059.8,3.09868478]
[1770654593928,3.03896971,2060.9,2060.0,2.85230637]
[1770654595334,3.04416118,2061.0,2060.2,2.85230637]
[1770654595928,0.00519147,2061.0,2060.4,2.85230637]
[1770654596133,0.00078111,2061.0,2060.4,2.85230637]
[1770654598434,3.03975082,2061.0,2060.4,2.85230637]
[1770654600236,3.03975082,2061.0,2060.3,0.24283]
[1770654600433,3.03975082,2061.0,2060.0,2.85230637]
[1770654601136,3.03975082,2061.0,2060.2,2.85230637]
[1770654601931,3.03896971,2061.5,2060.6,2.85230637]
[1770654602131,3.03896971,2061.5,2060.3,21.98746682]
[1770654602132,3.03896971,2061.5,2060.8,2.85230637]
[1770654602328,2.88347553,2062.6,2061.3,0.24271]
[1770654602530,3.03896971,2062.8,2061.6,2.85230637]
[1770654602734,3.03896971,2062.8,2061.8,2.85230637]
[1770654602939,3.043346,2062.8,2061.8,2.85763476]
[1770654603538,3.03896971,2062.7,2061.8,0.00532839]